[Event "*** SCC Grand Prix: Titled Tuesday Blitz"]
[Site "Chess.com"]
[Date "2020.07.14"]
[Round "4"]
[White "HrvojeZagreb"]
[Black "Omk124"]
[Result "0-1"]
[WhiteElo "2099"]
[BlackElo "2367"]
[TimeControl "180+1"]
[EndTime "10:39:46 PDT"]
[Termination "Omk124 won on time"]

1. d4 {[%clk 0:01:12.8]} 1... Nf6 {[%clk 0:02:58.3]} 2. Bf4 {[%clk 0:01:11.2]}
2... g6 {[%clk 0:02:57.4]} 3. Nc3 {[%clk 0:01:10.7]} 3... d5 {[%clk 0:02:56.8]}
4. e3 {[%clk 0:01:10.7]} 4... Bg7 {[%clk 0:02:56.1]} 5. h4 {[%clk 0:01:10.9]}
5... c6 {[%clk 0:02:39.4]} 6. Bd3 {[%clk 0:01:06.5]} 6... Be6 {[%clk 0:02:35.6]}
7. Nf3 {[%clk 0:01:05.1]} 7... Bg4 {[%clk 0:02:33.3]} 8. Qd2 {[%clk 0:01:03.8]}
8... Nbd7 {[%clk 0:02:33.5]} 9. Ne5 {[%clk 0:01:03]} 9... Nxe5 {[%clk
0:02:23.7]} 10. Bxe5 {[%clk 0:00:48.4]} 10... h5 {[%clk 0:02:17.8]} 11. f3
{[%clk 0:00:47.6]} 11... Be6 {[%clk 0:02:15.1]} 12. O-O-O {[%clk 0:00:46.8]}
12... b5 {[%clk 0:02:12]} 13. e4 {[%clk 0:00:44.3]} 13... dxe4 {[%clk
0:02:11.8]} 14. Nxe4 {[%clk 0:00:42.6]} 14... O-O {[%clk 0:02:09.8]} 15. Ng5
{[%clk 0:00:40.1]} 15... Bxa2 {[%clk 0:01:40.9]} 16. g4 {[%clk 0:00:38]} 16...
hxg4 {[%clk 0:01:35.1]} 17. h5 {[%clk 0:00:38]} 17... gxh5 {[%clk 0:01:10.8]}
18. Nh7 {[%clk 0:00:17.8]} 18... Bd5 {[%clk 0:00:30.6]} 19. Qg5 {[%clk
0:00:15.6]} 19... Bxf3 {[%clk 0:00:27.1]} 20. Bxf6 {[%clk 0:00:06.2]} 20... exf6
{[%clk 0:00:27.4]} 21. Qxh5 {[%clk 0:00:06.4]} 21... Re8 {[%clk 0:00:24.5]} 22.
Nxf6+ {[%clk 0:00:02.7]} 22... Qxf6 {[%clk 0:00:23.8]} 23. Qh7+ {[%clk
0:00:01.7]} 23... Kf8 {[%clk 0:00:24.4]} 24. Rhf1 {[%clk 0:00:01.9]} 24... Qh6+
{[%clk 0:00:23.9]} 25. Qxh6 {[%clk 0:00:01.8]} 25... Bxh6+ {[%clk 0:00:24.8]}
26. Rd2 {[%clk 0:00:02.4]} 26... Bd1 {[%clk 0:00:25.5]} 27. Rxd1 {[%clk
0:00:01.3]} 27... Bxd2+ {[%clk 0:00:26.4]} 28. Kxd2 {[%clk 0:00:02.1]} 28... g3
{[%clk 0:00:26.3]} 29. c3 {[%clk 0:00:03]} 29... Ke7 {[%clk 0:00:26.6]} 30. Rg1
{[%clk 0:00:03.9]} 30... Rg8 {[%clk 0:00:26.7]} 31. Be4 {[%clk 0:00:04.1]} 31...
Rg4 {[%clk 0:00:26.7]} 32. Bxc6 {[%clk 0:00:03.7]} 32... Rh8 {[%clk 0:00:27.2]}
33. Bf3 {[%clk 0:00:03.5]} 33... Rg5 {[%clk 0:00:26]} 34. Kd3 {[%clk 0:00:03.6]}
34... Rh2 {[%clk 0:00:26.3]} 35. Bb7 {[%clk 0:00:03.4]} 35... Rxb2 {[%clk
0:00:26.2]} 36. Bc6 {[%clk 0:00:03.5]} 36... g2 {[%clk 0:00:26.1]} 37. d5 {[%clk
0:00:03.9]} 37... Rf2 {[%clk 0:00:26.1]} 38. d6+ {[%clk 0:00:03.5]} 38... Kxd6
{[%clk 0:00:26.1]} 39. Be4 {[%clk 0:00:04.4]} 39... Rf1 {[%clk 0:00:25.8]} 40.
Rxg2 {[%clk 0:00:04]} 40... Rxg2 {[%clk 0:00:26.4]} 41. Bxg2 {[%clk 0:00:04.9]}
41... Rf5 {[%clk 0:00:26.4]} 42. Be4 {[%clk 0:00:05]} 42... Re5 {[%clk
0:00:26.8]} 43. Bf3 {[%clk 0:00:04.4]} 43... f5 {[%clk 0:00:27.7]} 44. Kd4
{[%clk 0:00:04]} 44... f4 {[%clk 0:00:28.6]} 45. Bb7 {[%clk 0:00:02.7]} 45...
Re3 {[%clk 0:00:29.5]} 46. Ba6 {[%clk 0:00:01.5]} 46... Kc6 {[%clk 0:00:28.4]}
0-1

[Event "*** SCC Grand Prix: Titled Tuesday Blitz"]
[Site "Chess.com"]
[Date "2020.07.14"]
[Round "4"]
[White "GregShahade"]
[Black "Indianlad"]
[Result "0-1"]
[WhiteElo "2723"]
[BlackElo "2951"]
[TimeControl "180+1"]
[EndTime "10:39:49 PDT"]
[Termination "Indianlad won by resignation"]

1. e4 {[%clk 0:03:00.9]} 1... e5 {[%clk 0:03:00.5]} 2. Nf3 {[%clk 0:03:01.2]}
2... Nc6 {[%clk 0:03:01]} 3. Bb5 {[%clk 0:03:01.8]} 3... a6 {[%clk 0:03:01.5]}
4. Ba4 {[%clk 0:03:02.3]} 4... f5 {[%clk 0:03:02]} 5. d3 {[%clk 0:03:00.5]} 5...
fxe4 {[%clk 0:03:02.2]} 6. dxe4 {[%clk 0:03:00.6]} 6... Nf6 {[%clk 0:03:02.8]}
7. O-O {[%clk 0:03:00.4]} 7... d6 {[%clk 0:03:03.1]} 8. a3 {[%clk 0:02:56.9]}
8... Be7 {[%clk 0:03:00.6]} 9. Nc3 {[%clk 0:02:56.4]} 9... O-O {[%clk
0:02:59.9]} 10. Qd3 {[%clk 0:02:31.6]} 10... Kh8 {[%clk 0:02:57.4]} 11. Bb3
{[%clk 0:02:19.2]} 11... Bg4 {[%clk 0:02:57.1]} 12. Ng5 {[%clk 0:02:10]} 12...
Qe8 {[%clk 0:02:51.9]} 13. Ne6 {[%clk 0:02:05.8]} 13... Bxe6 {[%clk 0:02:51.9]}
14. Bxe6 {[%clk 0:02:06.7]} 14... Nd4 {[%clk 0:02:52.4]} 15. Ba2 {[%clk
0:02:00.2]} 15... Qh5 {[%clk 0:02:43.2]} 16. f3 {[%clk 0:01:56]} 16... c6 {[%clk
0:02:08.9]} 17. Be3 {[%clk 0:01:52.5]} 17... Nb5 {[%clk 0:02:09.1]} 18. Ne2
{[%clk 0:01:47.7]} 18... Qg6 {[%clk 0:01:57.2]} 19. Ng3 {[%clk 0:01:38.3]} 19...
d5 {[%clk 0:01:23.7]} 20. Nf5 {[%clk 0:01:23.7]} 20... Rfe8 {[%clk 0:01:24.1]}
21. a4 {[%clk 0:01:16.4]} 21... Nd6 {[%clk 0:01:24]} 22. Nxe7 {[%clk 0:01:06.2]}
22... Rxe7 {[%clk 0:01:24.3]} 23. exd5 {[%clk 0:01:05.8]} 23... Qxd3 {[%clk
0:01:24.1]} 24. cxd3 {[%clk 0:01:06.7]} 24... cxd5 {[%clk 0:01:14.4]} 25. Bc5
{[%clk 0:01:06.2]} 25... Rd7 {[%clk 0:01:14.1]} 26. Rfe1 {[%clk 0:01:02.2]}
26... Nf7 {[%clk 0:01:14.2]} 27. g4 {[%clk 0:00:56.1]} 27... h6 {[%clk
0:01:14.4]} 28. Rac1 {[%clk 0:00:52]} 28... g5 {[%clk 0:01:08.4]} 29. h3 {[%clk
0:00:50]} 29... Kg7 {[%clk 0:01:08.7]} 30. b4 {[%clk 0:00:45.7]} 30... Re8
{[%clk 0:00:57.4]} 31. Kg2 {[%clk 0:00:43.5]} 31... Nh8 {[%clk 0:00:57.2]} 32.
Be3 {[%clk 0:00:35.9]} 32... Ng6 {[%clk 0:00:57.2]} 33. Rc5 {[%clk 0:00:34]}
33... e4 {[%clk 0:00:53.6]} 34. fxe4 {[%clk 0:00:14.7]} 34... dxe4 {[%clk
0:00:54.5]} 35. d4 {[%clk 0:00:15.3]} 35... Nf4+ {[%clk 0:00:51.4]} 36. Kg3
{[%clk 0:00:15.5]} 36... Nd3 {[%clk 0:00:51.6]} 37. Rf1 {[%clk 0:00:13.1]} 37...
Nxc5 {[%clk 0:00:51.6]} 38. bxc5 {[%clk 0:00:13.4]} 38... Nd5 {[%clk 0:00:51.9]}
39. Bxd5 {[%clk 0:00:13.2]} 39... Rxd5 {[%clk 0:00:52.7]} 40. h4 {[%clk
0:00:13.4]} 40... Rf8 {[%clk 0:00:48.9]} 41. Rb1 {[%clk 0:00:11.8]} 41... Rf3+
{[%clk 0:00:48.8]} 42. Kg2 {[%clk 0:00:12.2]} 42... Rxe3 {[%clk 0:00:49.1]} 43.
Rxb7+ {[%clk 0:00:12.6]} 43... Kf8 {[%clk 0:00:49.7]} 44. c6 {[%clk 0:00:12]}
44... Rd8 {[%clk 0:00:38.8]} 45. c7 {[%clk 0:00:11.6]} 45... Re8 {[%clk
0:00:38.6]} 46. d5 {[%clk 0:00:11.8]} 46... Re2+ {[%clk 0:00:26.6]} 47. Kf1
{[%clk 0:00:11.2]} 47... Rc2 {[%clk 0:00:25]} 48. d6 {[%clk 0:00:11]} 48... e3
{[%clk 0:00:25.6]} 49. d7 {[%clk 0:00:03.5]} 49... e2+ {[%clk 0:00:25.5]} 50.
Ke1 {[%clk 0:00:04.2]} 50... Rc1+ {[%clk 0:00:26]} 51. Kf2 {[%clk 0:00:04.6]}
51... e1=Q+ {[%clk 0:00:26.9]} 0-1

[Event "*** SCC Grand Prix: Titled Tuesday Blitz"]
[Site "Chess.com"]
[Date "2020.07.14"]
[Round "4"]
[White "Mbneu"]
[Black "1f3_2g41-0"]
[Result "0-1"]
[WhiteElo "2211"]
[BlackElo "2406"]
[TimeControl "180+1"]
[EndTime "10:39:49 PDT"]
[Termination "1f3_2g41-0 won on time"]

1. d4 {[%clk 0:02:56.2]} 1... Nf6 {[%clk 0:02:59.7]} 2. c4 {[%clk 0:02:49.1]}
2... g6 {[%clk 0:02:59.1]} 3. Nc3 {[%clk 0:02:48.3]} 3... d5 {[%clk 0:02:58.8]}
4. cxd5 {[%clk 0:02:47.1]} 4... Nxd5 {[%clk 0:02:59.2]} 5. g4 {[%clk 0:02:47.4]}
5... Nxc3 {[%clk 0:02:55]} 6. bxc3 {[%clk 0:02:46.4]} 6... Bxg4 {[%clk
0:02:53.9]} 7. Bh3 {[%clk 0:02:45.4]} 7... Qd5 {[%clk 0:02:40.7]} 8. f3 {[%clk
0:02:40.8]} 8... Bxh3 {[%clk 0:02:36.5]} 9. Nxh3 {[%clk 0:02:39.9]} 9... Bg7
{[%clk 0:02:37]} 10. Nf4 {[%clk 0:02:26.7]} 10... Qa5 {[%clk 0:02:34.7]} 11. Bd2
{[%clk 0:02:25.3]} 11... O-O {[%clk 0:02:34]} 12. h4 {[%clk 0:02:23.8]} 12... e5
{[%clk 0:02:31.5]} 13. Nd3 {[%clk 0:02:17.7]} 13... exd4 {[%clk 0:02:27.9]} 14.
cxd4 {[%clk 0:02:17.1]} 14... Qd5 {[%clk 0:02:25.2]} 15. h5 {[%clk 0:02:13.4]}
15... Qxd4 {[%clk 0:02:20.9]} 16. Rc1 {[%clk 0:02:10.9]} 16... Nc6 {[%clk
0:02:17.9]} 17. Bc3 {[%clk 0:01:57.6]} 17... Qe3 {[%clk 0:02:14.1]} 18. Bxg7
{[%clk 0:01:55.9]} 18... Kxg7 {[%clk 0:02:15]} 19. Qc2 {[%clk 0:00:58.9]} 19...
Nd4 {[%clk 0:02:13]} 20. Qb2 {[%clk 0:00:58.9]} 20... Kg8 {[%clk 0:02:09.9]} 21.
Kf1 {[%clk 0:00:48.9]} 21... Rfe8 {[%clk 0:02:02.6]} 22. hxg6 {[%clk 0:00:43.1]}
22... hxg6 {[%clk 0:02:03.5]} 23. Rxc7 {[%clk 0:00:37.7]} 23... Qxe2+ {[%clk
0:01:45.4]} 24. Qxe2 {[%clk 0:00:36]} 24... Nxe2 {[%clk 0:01:46.3]} 25. Kf2
{[%clk 0:00:30.8]} 25... Nd4 {[%clk 0:01:43.9]} 26. Rxb7 {[%clk 0:00:26.3]}
26... Re2+ {[%clk 0:01:42.9]} 27. Kg3 {[%clk 0:00:24.9]} 27... Nf5+ {[%clk
0:01:41]} 28. Kf4 {[%clk 0:00:24.1]} 28... Rd8 {[%clk 0:01:38.5]} 29. Nc5 {[%clk
0:00:20.4]} 29... Rxa2 {[%clk 0:01:33.5]} 30. Ne4 {[%clk 0:00:19.1]} 30... Kg7
{[%clk 0:01:31.4]} 31. Ng5 {[%clk 0:00:15.8]} 31... Ra4+ {[%clk 0:01:30.9]} 32.
Ne4 {[%clk 0:00:13.9]} 32... Nd6 {[%clk 0:01:28.1]} 33. Re7 {[%clk 0:00:11.3]}
33... Nxe4 {[%clk 0:01:25.5]} 34. fxe4 {[%clk 0:00:11.9]} 34... Rd2 {[%clk
0:01:22.3]} 35. Rb1 {[%clk 0:00:10.7]} 35... Rf2+ {[%clk 0:01:14.4]} 36. Ke3
{[%clk 0:00:09.3]} 36... Rf6 {[%clk 0:01:13.9]} 37. Rbb7 {[%clk 0:00:08.4]}
37... Ra3+ {[%clk 0:01:10.2]} 38. Kd4 {[%clk 0:00:07.6]} 38... a6 {[%clk
0:01:09.5]} 39. e5 {[%clk 0:00:06.8]} 39... Rf4+ {[%clk 0:01:09.5]} 40. Kd5
{[%clk 0:00:06.2]} 40... Ra5+ {[%clk 0:01:09.7]} 41. Kc6 {[%clk 0:00:04]} 41...
Rc4+ {[%clk 0:01:06.1]} 42. Kb6 {[%clk 0:00:03.8]} 42... Rb5+ {[%clk 0:01:05.8]}
43. Kxa6 {[%clk 0:00:04.3]} 43... Rxb7 {[%clk 0:01:05.9]} 44. Kxb7 {[%clk
0:00:04.2]} 44... Re4 {[%clk 0:01:05.9]} 45. Kc6 {[%clk 0:00:03.8]} 45... g5
{[%clk 0:01:06.2]} 46. Kd5 {[%clk 0:00:03.9]} 46... Re1 {[%clk 0:01:06.6]} 47.
Rb7 {[%clk 0:00:03.1]} 47... Kg6 {[%clk 0:01:04.2]} 48. Rb2 {[%clk 0:00:03.6]}
48... g4 {[%clk 0:01:02.9]} 49. Rf2 {[%clk 0:00:04]} 49... g3 {[%clk 0:00:45.1]}
50. Rf6+ {[%clk 0:00:03.4]} 50... Kg7 {[%clk 0:00:38.8]} 51. Rf3 {[%clk
0:00:01.6]} 51... Rg1 {[%clk 0:00:36.2]} 52. Ke4 {[%clk 0:00:01.9]} 52... g2
{[%clk 0:00:32.8]} 53. Rg3+ {[%clk 0:00:02]} 53... Kf8 {[%clk 0:00:31.4]} 54.
Kf3 {[%clk 0:00:02.5]} 54... Ke7 {[%clk 0:00:30.4]} 0-1

[Event "*** SCC Grand Prix: Titled Tuesday Blitz"]
[Site "Chess.com"]
[Date "2020.07.14"]
[Round "4"]
[White "JonahWillow"]
[Black "ChessicallyInclined"]
[Result "1/2-1/2"]
[WhiteElo "2700"]
[BlackElo "2497"]
[TimeControl "180+1"]
[EndTime "10:39:51 PDT"]
[Termination "Game drawn by repetition"]

1. e4 {[%clk 0:03:00.9]} 1... c5 {[%clk 0:02:59.9]} 2. Nf3 {[%clk 0:03:01]} 2...
Nc6 {[%clk 0:03:00.5]} 3. d4 {[%clk 0:03:01]} 3... cxd4 {[%clk 0:03:01.4]} 4.
Nxd4 {[%clk 0:03:01.9]} 4... Nf6 {[%clk 0:03:02.3]} 5. Nc3 {[%clk 0:03:01.8]}
5... e5 {[%clk 0:03:03]} 6. Ndb5 {[%clk 0:03:00.6]} 6... d6 {[%clk 0:03:03.6]}
7. Bg5 {[%clk 0:03:01.2]} 7... a6 {[%clk 0:03:03.4]} 8. Na3 {[%clk 0:03:01.9]}
8... b5 {[%clk 0:03:03.9]} 9. Nd5 {[%clk 0:03:02.6]} 9... Be7 {[%clk 0:03:03.7]}
10. Bxf6 {[%clk 0:03:03.3]} 10... gxf6 {[%clk 0:03:04.1]} 11. c4 {[%clk
0:03:04.2]} 11... b4 {[%clk 0:03:00.2]} 12. Nc2 {[%clk 0:03:04]} 12... f5 {[%clk
0:02:59.5]} 13. exf5 {[%clk 0:02:56.4]} 13... Bxf5 {[%clk 0:02:57.4]} 14. g3
{[%clk 0:02:55.8]} 14... h5 {[%clk 0:02:34]} 15. Bg2 {[%clk 0:02:55.4]} 15...
Rc8 {[%clk 0:02:33.5]} 16. Nce3 {[%clk 0:02:50.6]} 16... Be6 {[%clk 0:02:31.7]}
17. O-O {[%clk 0:02:50.4]} 17... h4 {[%clk 0:02:30.8]} 18. b3 {[%clk 0:02:45.2]}
18... Nd4 {[%clk 0:02:29.2]} 19. Nxb4 {[%clk 0:02:43.1]} 19... a5 {[%clk
0:02:26.3]} 20. Nbd5 {[%clk 0:02:43.2]} 20... Rb8 {[%clk 0:01:50.4]} 21. Nc2
{[%clk 0:02:29.3]} 21... Nxc2 {[%clk 0:01:42.5]} 22. Qxc2 {[%clk 0:02:30.2]}
22... Qd7 {[%clk 0:01:39.4]} 23. Qd2 {[%clk 0:02:26]} 23... Bh3 {[%clk
0:01:33.3]} 24. f4 {[%clk 0:02:00.6]} 24... hxg3 {[%clk 0:01:29.6]} 25. hxg3
{[%clk 0:02:00]} 25... Rg8 {[%clk 0:00:54.8]} 26. Qf2 {[%clk 0:01:57.1]} 26...
Qg4 {[%clk 0:00:48.3]} 27. fxe5 {[%clk 0:01:53.1]} 27... Rg7 {[%clk 0:00:30.2]}
28. exd6 {[%clk 0:01:40.6]} 28... Qxg3 {[%clk 0:00:28.6]} 29. dxe7 {[%clk
0:01:07.4]} 29... Qxg2+ {[%clk 0:00:23]} 30. Qxg2 {[%clk 0:01:07.4]} 30... Bxg2
{[%clk 0:00:21.5]} 31. Kf2 {[%clk 0:00:40.2]} 31... Bxd5 {[%clk 0:00:20.5]} 32.
cxd5 {[%clk 0:00:40]} 32... Kxe7 {[%clk 0:00:21.2]} 33. Rac1 {[%clk 0:00:35.5]}
33... Kd6 {[%clk 0:00:19.5]} 34. Rfd1 {[%clk 0:00:35.3]} 34... Rb6 {[%clk
0:00:14.8]} 35. Rc8 {[%clk 0:00:33.8]} 35... Rg5 {[%clk 0:00:14.4]} 36. Rd8+
{[%clk 0:00:33.6]} 36... Ke7 {[%clk 0:00:15]} 37. Ra8 {[%clk 0:00:32.3]} 37...
Rb5 {[%clk 0:00:09]} 38. d6+ {[%clk 0:00:30.6]} 38... Kd7 {[%clk 0:00:09.3]} 39.
Ra7+ {[%clk 0:00:30.2]} 39... Kd8 {[%clk 0:00:09.7]} 40. Rxf7 {[%clk 0:00:26]}
40... Rbd5 {[%clk 0:00:09]} 41. Rh1 {[%clk 0:00:18.3]} 41... Rdf5+ {[%clk
0:00:07.6]} 42. Rxf5 {[%clk 0:00:18.3]} 42... Rxf5+ {[%clk 0:00:08.5]} 43. Ke3
{[%clk 0:00:19.2]} 43... Rd5 {[%clk 0:00:08.9]} 44. Rh6 {[%clk 0:00:18.6]} 44...
Kd7 {[%clk 0:00:08.8]} 45. Ke4 {[%clk 0:00:16.1]} 45... Rd2 {[%clk 0:00:08.9]}
46. Ke5 {[%clk 0:00:16.7]} 46... Re2+ {[%clk 0:00:09.2]} 47. Kd5 {[%clk
0:00:17]} 47... Rd2+ {[%clk 0:00:09.7]} 48. Kc5 {[%clk 0:00:17.3]} 48... Rc2+
{[%clk 0:00:10.3]} 49. Kd5 {[%clk 0:00:13.4]} 49... Rd2+ {[%clk 0:00:10.3]} 50.
Ke5 {[%clk 0:00:11.7]} 50... Re2+ {[%clk 0:00:10.4]} 51. Kd5 {[%clk 0:00:10.1]}
51... Rd2+ {[%clk 0:00:10.7]} 1/2-1/2

[Event "*** SCC Grand Prix: Titled Tuesday Blitz"]
[Site "Chess.com"]
[Date "2020.07.14"]
[Round "4"]
[White "Savva09022009"]
[Black "Chessbard1972"]
[Result "1-0"]
[WhiteElo "2448"]
[BlackElo "2270"]
[TimeControl "180+1"]
[EndTime "10:39:51 PDT"]
[Termination "Savva09022009 won on time"]

1. d4 {[%clk 0:03:00.9]} 1... Nf6 {[%clk 0:02:58.7]} 2. Nc3 {[%clk 0:03:01.3]}
2... d5 {[%clk 0:02:57.6]} 3. Bf4 {[%clk 0:03:01.1]} 3... c5 {[%clk 0:02:54.4]}
4. e3 {[%clk 0:02:58.8]} 4... Bf5 {[%clk 0:02:53.1]} 5. f3 {[%clk 0:02:53]} 5...
e6 {[%clk 0:02:51.4]} 6. g4 {[%clk 0:02:50.9]} 6... Bg6 {[%clk 0:02:50.9]} 7. h4
{[%clk 0:02:50.9]} 7... h5 {[%clk 0:02:49.5]} 8. g5 {[%clk 0:02:48]} 8... Nfd7
{[%clk 0:02:49]} 9. Bd3 {[%clk 0:02:42.2]} 9... Bxd3 {[%clk 0:02:47]} 10. Qxd3
{[%clk 0:02:42.4]} 10... cxd4 {[%clk 0:02:45.8]} 11. exd4 {[%clk 0:02:38]} 11...
a6 {[%clk 0:02:43.7]} 12. O-O-O {[%clk 0:02:36.2]} 12... Nc6 {[%clk 0:02:43]}
13. g6 {[%clk 0:02:30.1]} 13... Bb4 {[%clk 0:02:35.1]} 14. gxf7+ {[%clk
0:02:29]} 14... Kxf7 {[%clk 0:02:34.7]} 15. Nh3 {[%clk 0:02:27.7]} 15... Be7
{[%clk 0:02:21.7]} 16. Rhg1 {[%clk 0:02:20]} 16... Nf8 {[%clk 0:02:18.7]} 17.
Bg5 {[%clk 0:02:13.6]} 17... Bf6 {[%clk 0:02:16.2]} 18. Bxf6 {[%clk 0:02:11.7]}
18... gxf6 {[%clk 0:02:15]} 19. Nf4 {[%clk 0:02:10.8]} 19... Ne7 {[%clk
0:02:09.8]} 20. Rde1 {[%clk 0:02:08.7]} 20... Qd6 {[%clk 0:02:08.7]} 21. Qe3
{[%clk 0:01:40.8]} 21... b5 {[%clk 0:02:03.4]} 22. Rg2 {[%clk 0:01:37]} 22... b4
{[%clk 0:02:00.3]} 23. Nd1 {[%clk 0:01:37.2]} 23... Nf5 {[%clk 0:01:57.1]} 24.
Qd2 {[%clk 0:01:31.2]} 24... Rc8 {[%clk 0:01:50.1]} 25. Reg1 {[%clk 0:01:28.1]}
25... Rc4 {[%clk 0:01:46]} 26. Ng6 {[%clk 0:01:17.1]} 26... Nxg6 {[%clk
0:01:41.9]} 27. Rxg6 {[%clk 0:01:16.5]} 27... Rxd4 {[%clk 0:01:39.9]} 28. Qg2
{[%clk 0:01:13.2]} 28... Qf4+ {[%clk 0:01:27.7]} 29. Kb1 {[%clk 0:01:11.1]}
29... Ke7 {[%clk 0:01:19.7]} 30. Rg8 {[%clk 0:00:59.4]} 30... Rh7 {[%clk
0:00:58.9]} 31. Qg6 {[%clk 0:00:54.4]} 31... Rf7 {[%clk 0:00:57]} 32. Ra8 {[%clk
0:00:35.4]} 32... Qc7 {[%clk 0:00:30.1]} 33. Qg8 {[%clk 0:00:34.1]} 33... Nd6
{[%clk 0:00:23.3]} 34. Ne3 {[%clk 0:00:28.3]} 34... Rd2 {[%clk 0:00:15.3]} 35.
b3 {[%clk 0:00:20.4]} 35... d4 {[%clk 0:00:14.3]} 36. Rg7 {[%clk 0:00:18.5]}
36... dxe3 {[%clk 0:00:09.7]} 37. Re8+ {[%clk 0:00:14.7]} 37... Nxe8 {[%clk
0:00:08]} 38. Qxf7+ {[%clk 0:00:09.8]} 38... Kd6 {[%clk 0:00:07.8]} 39. Qf8+
{[%clk 0:00:09.6]} 39... Kc6 {[%clk 0:00:03.3]} 40. Rxc7+ {[%clk 0:00:09.8]}
40... Nxc7 {[%clk 0:00:02.7]} 41. Qxb4 {[%clk 0:00:09.6]} 1-0

[Event "*** SCC Grand Prix: Titled Tuesday Blitz"]
[Site "Chess.com"]
[Date "2020.07.14"]
[Round "4"]
[White "sertalzin"]
[Black "BabyBoss31"]
[Result "0-1"]
[WhiteElo "1947"]
[BlackElo "2206"]
[TimeControl "180+1"]
[EndTime "10:39:51 PDT"]
[Termination "BabyBoss31 won on time"]

1. d4 {[%clk 0:03:00.9]} 1... d5 {[%clk 0:02:58.9]} 2. c4 {[%clk 0:03:00.2]}
2... Nc6 {[%clk 0:02:58]} 3. cxd5 {[%clk 0:02:59.2]} 3... Qxd5 {[%clk
0:02:54.7]} 4. e3 {[%clk 0:02:56.7]} 4... e5 {[%clk 0:02:51.1]} 5. Nc3 {[%clk
0:02:56.1]} 5... Bb4 {[%clk 0:02:49.7]} 6. a3 {[%clk 0:02:55.4]} 6... Bxc3+
{[%clk 0:02:47]} 7. bxc3 {[%clk 0:02:54.9]} 7... Nf6 {[%clk 0:02:46.7]} 8. c4
{[%clk 0:02:52.9]} 8... Qd6 {[%clk 0:02:43.3]} 9. d5 {[%clk 0:02:52.5]} 9... Nb8
{[%clk 0:02:40.8]} 10. a4 {[%clk 0:02:48.9]} 10... Na6 {[%clk 0:02:36.6]} 11.
Ba3 {[%clk 0:02:47.2]} 11... Nc5 {[%clk 0:02:33.6]} 12. Nf3 {[%clk 0:02:37.5]}
12... Bf5 {[%clk 0:02:00.4]} 13. Be2 {[%clk 0:02:15.4]} 13... Nfd7 {[%clk
0:01:57.2]} 14. O-O {[%clk 0:02:13.6]} 14... O-O {[%clk 0:01:51.3]} 15. Nd2
{[%clk 0:01:58.2]} 15... Qg6 {[%clk 0:01:40]} 16. Nb3 {[%clk 0:01:23.8]} 16...
Nxb3 {[%clk 0:01:06.8]} 17. Qxb3 {[%clk 0:01:13.4]} 17... Rfb8 {[%clk
0:01:05.8]} 18. Kh1 {[%clk 0:01:08.4]} 18... c6 {[%clk 0:00:55.5]} 19. f3 {[%clk
0:01:00.1]} 19... e4 {[%clk 0:00:52.3]} 20. f4 {[%clk 0:00:48.6]} 20... cxd5
{[%clk 0:00:37.8]} 21. cxd5 {[%clk 0:00:47.4]} 21... b6 {[%clk 0:00:38.6]} 22.
Rac1 {[%clk 0:00:40.2]} 22... Rd8 {[%clk 0:00:38.4]} 23. Rc6 {[%clk 0:00:37.7]}
23... Nf6 {[%clk 0:00:35.8]} 24. Bb2 {[%clk 0:00:27.2]} 24... Rd7 {[%clk
0:00:31.8]} 25. Rfc1 {[%clk 0:00:22.4]} 25... Rad8 {[%clk 0:00:31.5]} 26. Rc8
{[%clk 0:00:21.2]} 26... h6 {[%clk 0:00:25.1]} 27. Rxd8+ {[%clk 0:00:20.3]}
27... Rxd8 {[%clk 0:00:26]} 28. Rc6 {[%clk 0:00:18.6]} 28... Bg4 {[%clk
0:00:20.2]} 29. Qd1 {[%clk 0:00:10.6]} 29... Rxd5 {[%clk 0:00:17.2]} 30. Qxd5
{[%clk 0:00:08.8]} 30... Nxd5 {[%clk 0:00:11.7]} 31. Rxg6 {[%clk 0:00:08]} 31...
Bxe2 {[%clk 0:00:12.3]} 32. Rxg7+ {[%clk 0:00:07.4]} 32... Kf8 {[%clk
0:00:12.8]} 33. Rh7 {[%clk 0:00:06.4]} 33... h5 {[%clk 0:00:10]} 34. Rh8+ {[%clk
0:00:05.2]} 34... Ke7 {[%clk 0:00:09.7]} 35. Ra8 {[%clk 0:00:06.1]} 35... Nxe3
{[%clk 0:00:09.5]} 36. Rxa7+ {[%clk 0:00:06.8]} 36... Ke6 {[%clk 0:00:09.9]} 37.
Rb7 {[%clk 0:00:05.7]} 37... Nc4 {[%clk 0:00:09.9]} 38. Bc1 {[%clk 0:00:04.2]}
38... e3 {[%clk 0:00:08.4]} 39. g3 {[%clk 0:00:03.4]} 39... Bf3+ {[%clk
0:00:08.1]} 40. Kg1 {[%clk 0:00:03.1]} 40... Bxb7 {[%clk 0:00:09]} 0-1